bitfinex/quotes_ETHUSD_20250523
["timestamp","ask_amount","ask_price","bid_price","bid_amount"]
[1747975400148,5.12521051,2681.7,2681.0,16.86]
[1747975400395,5.12521051,2681.7,2681.0,20.61002344]
[1747975400686,3.72945255,2681.4,2681.1,1.3973]
[1747975400873,3.72929536,2681.5,2681.1,1.3973]
[1747975401388,3.72939806,2681.4,2681.1,1.3973]
[1747975402291,3.72939806,2681.4,2681.1,3.38870284]
[1747975402659,3.72957467,2681.3,2681.1,3.38870284]
[1747975402970,3.72945421,2681.4,2681.1,3.38870284]
[1747975404091,0.05,2681.9,2681.1,3.38870284]
[1747975404251,3.72953418,2681.3,2681.1,1.3973]
[1747975404456,3.72915802,2681.6,2681.2,16.858]
[1747975404655,3.72976898,2681.2,2680.9,19.178]
[1747975404866,3.72976898,2681.2,2681.0,16.858]
[1747975405201,3.72981239,2681.1,2681.0,24.858]
[1747975405897,3.72956304,2681.3,2681.0,24.858]
[1747975405898,3.72973096,2681.2,2681.0,24.858]
[1747975406206,3.72981239,2681.1,2681.0,8.0]
[1747975406565,3.72981239,2681.1,2681.0,24.858]
[1747975406973,3.72973726,2681.2,2681.0,24.858]
[1747975407572,0.05,2681.9,2681.0,24.858]
[1747975407777,3.72943195,2681.4,2681.0,24.858]
[1747975408102,3.72930688,2681.5,2681.1,8.0]
[1747975408306,3.72941663,2681.4,2681.1,8.0]
[1747975408490,3.72941663,2681.4,2681.1,10.4858]
[1747975409202,3.72921813,2681.6,2681.2,1.4037]
[1747975409403,3.72927429,2681.5,2681.2,1.4037]
[1747975409565,3.72952152,2681.4,2681.2,1.4037]
[1747975410871,3.72936451,2681.5,2681.2,1.4037]
[1747975411067,3.72942774,2681.4,2681.2,1.4037]
[1747975411626,3.73006552,2681.0,2680.8,27.276]
[1747975411772,3.73006552,2681.0,2680.9,24.857]
[1747975412683,3.72988853,2681.1,2680.9,24.798]
[1747975413015,3.72981239,2681.1,2681.0,8.0]
[1747975413589,3.72995151,2681.0,2680.9,24.798]
[1747975414822,3.72995151,2681.0,2680.9,8.0]
[1747975415139,3.72995151,2681.0,2680.9,24.798]
[1747975415629,3.72949005,2681.4,2680.9,28.54802344]
[1747975416124,3.7298032,2681.2,2680.9,28.54802344]
[1747975416430,3.72969116,2681.2,2680.9,8.0]
[1747975416614,5.1394781,2681.7,2681.0,16.798]
[1747975416800,3.72926135,2681.5,2681.0,16.798]
[1747975416996,1.4104,2681.7,2681.1,8.0]
[1747975417198,3.72961254,2681.3,2681.1,8.0]
[1747975417403,3.72961254,2681.3,2681.1,11.5975]
[1747975417587,3.72940159,2681.4,2681.1,8.0]
[1747975417787,3.72959513,2681.3,2681.1,8.0]
[1747975417983,1.4104,2681.7,2681.1,8.0]
[1747975418184,3.72955609,2681.3,2681.1,8.0]
[1747975418423,3.72967328,2681.2,2681.1,8.0]
[1747975418691,3.72954137,2681.3,2681.1,16.798]
[1747975419128,3.7294505,2681.4,2681.1,19.2778]
[1747975419430,3.72956013,2681.3,2681.1,19.2778]
[1747975419927,3.72901136,2681.7,2681.1,19.2778]
[1747975420132,3.7292644,2681.5,2681.2,1.3714]
[1747975420429,0.05,2681.9,2681.2,9.3714]
[1747975420630,3.72883883,2681.8,2681.3,2.86492]
[1747975420923,3.7787081,2681.9,2681.3,2.86492]
[1747975420924,3.72899848,2681.7,2681.3,2.86492]
[1747975421128,0.05,2681.9,2681.8,13.10023883]
[1747975421316,0.05,2681.9,2681.8,41.47194511]
[1747975421516,0.05,2681.9,2681.8,37.74310628]
[1747975421828,3.7786998,2681.9,2681.8,16.095]
[1747975422124,3.7786998,2681.9,2681.8,32.892]
[1747975422905,3.7786998,2681.9,2681.8,16.797]
[1747975423227,3.7786998,2681.9,2681.4,16.094]
[1747975423530,3.72895494,2681.8,2681.5,27.974]
[1747975423702,3.77874927,2681.9,2681.5,27.974]
[1747975423906,3.77874927,2681.9,2681.5,30.85050628]
[1747975424101,0.05,2681.9,2681.5,30.85050628]
[1747975424425,0.05,2681.9,2681.5,34.57966409]
[1747975424593,0.05,2681.9,2681.6,3.72909957]
[1747975424834,0.05,2681.9,2681.7,3.72895282]
[1747975425033,0.05,2681.9,2681.8,27.973]
[1747975425676,0.05,2681.9,2681.8,27.972]
[1747975425980,0.05,2681.9,2681.8,29.305]
[1747975426274,0.05,2681.9,2681.8,27.972]
[1747975426483,3.72911694,2681.6,2681.5,1.333]
[1747975426634,3.72883883,2681.8,2681.5,1.333]
[1747975426840,0.05,2681.9,2681.5,31.0477]
[1747975427050,0.05,2681.9,2681.6,3.7291109]
[1747975427474,0.05,2681.9,2681.5,31.0477]
[1747975427685,0.05,2681.9,2681.5,34.77687844]
[1747975427839,0.05,2681.9,2681.6,7.47905728]
[1747975428266,0.05,2681.9,2681.6,3.75002344]
[1747975428974,0.05,2681.9,2681.6,7.47910082]
[1747975429474,0.05,2681.9,2681.7,35.97]
[1747975429776,0.05,2681.9,2681.8,1.3884]
[1747975430087,0.05,2681.9,2681.8,7.10864167]
[1747975430674,0.05,2681.9,2681.8,3.37980284]
[1747975430865,0.05,2681.9,2681.8,7.10864167]
[1747975431279,0.05,2681.9,2681.8,11.37980284]
[1747975431474,0.05,2681.9,2681.8,15.10864167]
[1747975431879,0.05,2681.9,2681.8,11.37980284]
[1747975432387,0.05,2682.9,2682.0,1.4078]
[1747975432699,3.72799355,2682.5,2682.2,8.0]
[1747975432853,3.72768457,2682.7,2682.2,8.0]
[1747975433407,3.72768457,2682.7,2682.4,8.0]
[1747975433804,3.727965,2682.5,2682.0,1.4078]
[1747975433980,3.72769877,2682.7,2682.4,8.0]
[1747975434179,3.72775003,2682.6,2682.4,8.0]
[1747975434877,3.72813195,2682.4,2682.2,11.174]
[1747975435178,3.72800477,2682.4,2682.3,24.793]
[1747975435374,3.72779547,2682.6,2682.3,24.793]
[1747975435559,3.72779547,2682.6,2682.4,16.793]
[1747975435759,3.72779547,2682.6,2682.5,8.0]
[1747975436771,0.74553491,2682.6,2682.0,1.4078]
[1747975436975,3.7281605,2682.3,2682.2,8.0]
[1747975437219,3.728199,2682.3,2682.2,16.792]
[1747975437501,3.728199,2682.3,2682.2,24.792]
[1747975438285,1.3922,2682.8,2682.2,24.792]
[1747975438569,3.72812471,2682.4,2682.2,24.792]
[1747975438768,3.72814375,2682.3,2682.2,8.0]
[1747975438967,3.72814375,2682.3,2682.2,24.792]
[1747975439602,3.72804807,2682.4,2682.2,24.792]
[1747975439966,0.37279587,2682.5,2682.2,24.792]
[1747975440299,3.72800477,2682.4,2682.3,16.792]
[1747975441267,3.72772683,2682.6,2682.3,16.792]
[1747975441468,3.72800477,2682.4,2682.3,16.792]
[1747975441775,3.77735329,2682.9,2682.4,9.4566]
[1747975441776,0.05,2682.9,2682.4,9.4566]
[1747975441995,0.05,2682.9,2682.6,8.0]
[1747975442509,0.05,2682.9,2682.5,8.0]
[1747975442663,0.05,2682.9,2682.8,8.0]
[1747975442869,3.77731,2682.9,2682.8,8.0]
[1747975443813,3.77731,2682.9,2682.8,16.721]
[1747975444113,3.72747674,2682.8,2682.5,8.0]
[1747975444315,3.72786579,2682.5,2682.4,32.81]
[1747975445009,4.60758505,2682.5,2682.4,32.81]
[1747975445201,3.72786579,2682.5,2682.4,32.81]
[1747975447418,3.72786579,2682.5,2682.4,16.089]
[1747975447716,1.3416,2682.7,2682.4,16.089]
[1747975447915,3.72786579,2682.5,2682.4,16.089]
[1747975448643,1.3416,2682.7,2681.4,1.3396]
[1747975448940,3.72894952,2681.8,2681.5,16.721]
[1747975449135,3.72878711,2681.9,2681.5,18.52706]
[1747975449325,3.72884189,2681.8,2681.5,16.721]
[1747975449511,5.10287131,2682.2,2681.6,8.0]
[1747975449715,1.3463,2682.6,2681.6,8.0]
[1747975449912,3.72863793,2682.0,2681.6,8.0]
[1747975450301,3.72848346,2682.1,2681.6,8.0]
[1747975450529,3.72808114,2682.4,2681.8,8.0]
[1747975450703,1.4231,2682.9,2682.2,8.0]
[1747975450896,3.7275568,2682.8,2682.3,16.721]
[1747975451098,3.72761965,2682.7,2682.2,8.0]
[1747975451437,3.72761965,2682.7,2682.3,16.721]
[1747975451739,5.15041843,2682.9,2682.4,8.0]
[1747975451740,3.77731843,2682.9,2682.4,8.0]
[1747975451942,0.05,2682.9,2682.6,8.0]
[1747975452615,0.05,2682.9,2682.8,11.72744893]
[1747975452812,0.05,2682.9,2682.8,13.08724893]
[1747975453143,0.05,2682.9,2682.8,25.56797382]
[1747975454011,0.05,2682.9,2682.8,21.84052489]
[1747975454215,0.05,2682.9,2682.8,25.56797382]
[1747975457943,0.05,2682.9,2682.8,9.3598]
[1747975458145,0.05,2682.9,2682.8,37.2488]
[1747975459044,0.05,2682.9,2682.8,40.97524893]
[1747975459437,0.05,2682.9,2682.8,41.52524893]
[1747975461850,0.05,2682.9,2682.8,1.9098]
[1747975462019,0.05,2682.9,2682.8,18.26778]
[1747975462203,0.05,2682.9,2682.8,33.16522893]
[1747975464523,0.05,2682.9,2682.8,28.07698]
[1747975464769,0.05,2682.9,2682.8,0.19098]
[1747975464937,0.05,2682.9,2682.8,27.885]
[1747975465374,0.05,2682.9,2682.8,31.61244893]
[1747975465569,0.05,2682.9,2682.8,29.3132]
[1747975465751,0.05,2682.9,2682.8,16.716]
[1747975466562,3.727719,2682.7,2682.4,8.0]
[1747975466735,3.77734421,2682.9,2682.5,16.716]
[1747975467066,3.72772683,2682.6,2682.5,16.716]
[1747975468486,3.72802776,2682.4,2682.1,1.3616]
[1747975468623,0.05,2682.9,2682.0,8.0]
[1747975468819,0.05,2682.9,2682.1,16.716]
[1747975468820,3.72828631,2682.2,2682.1,16.716]
[1747975470132,3.72801679,2682.4,2682.1,16.716]
[1747975470334,3.72824776,2682.3,2682.1,16.716]
[1747975471285,3.72813978,2682.4,2682.1,16.716]
[1747975471707,0.05,2682.9,2682.1,16.716]
[1747975471836,3.77740099,2682.9,2682.2,4.34715691]
[1747975472036,3.77740099,2682.9,2682.2,3.8038]
[1747975472371,3.77740099,2682.9,2682.3,3.72811057]
[1747975472573,3.77740099,2682.9,2682.2,7.53199116]
[1747975472754,0.05,2682.9,2682.3,2.7976296]
[1747975472958,3.77740881,2682.9,2682.3,2.7976296]
[1747975473273,3.77736471,2682.9,2682.3,6.52575152]
[1747975473471,3.72745631,2682.8,2682.3,6.52575152]
[1747975473670,3.72745631,2682.8,2682.3,2.7976296]
[1747975473870,3.77733518,2682.9,2682.4,0.47219668]
[1747975474071,3.72745721,2682.8,2682.4,0.47219668]
[1747975474457,3.72759865,2682.7,2682.4,0.47219668]
[1747975474932,3.72775314,2682.6,2682.4,11.64219668]
[1747975475139,3.72775314,2682.6,2682.5,16.649]
[1747975475572,3.72762527,2682.7,2682.5,16.649]
[1747975475973,3.72749874,2682.8,2682.5,16.649]
[1747975476177,3.72749874,2682.8,2682.5,18.64088263]
[1747975476875,3.72749874,2682.8,2682.6,8.0]
[1747975477739,1.3877,2682.9,2682.6,8.0]
[1747975478042,0.05,2682.9,2682.6,11.7277065]
[1747975478265,0.05,2682.9,2682.7,0.47971737]
[1747975479181,0.05,2682.9,2682.8,16.649]
[1747975479378,3.77733102,2682.9,2682.8,24.649]
[1747975479782,3.77731,2682.9,2682.8,24.649]
[1747975479944,0.05,2682.9,2682.8,24.649]
[1747975480568,3.77731,2682.9,2682.8,24.649]
[1747975480880,1.4645,2682.9,2682.2,8.0]
[1747975481284,5.19188647,2682.9,2682.4,8.0]
[1747975481481,0.05,2682.9,2682.2,8.0]
[1747975481681,0.05,2682.9,2682.4,4.27788432]
[1747975481989,0.05,2682.9,2682.5,12.28842464]
[1747975482482,0.05,2682.9,2682.5,8.56061843]
[1747975483172,3.72800477,2682.4,2682.3,16.649]
[1747975483366,3.72800477,2682.4,2682.3,24.649]
[1747975483567,3.72792275,2682.5,2682.3,24.649]
[1747975483882,3.72792275,2682.5,2682.4,8.0]
[1747975485747,3.72786579,2682.5,2682.4,24.65]
[1747975486184,3.72786579,2682.5,2682.4,8.0]
[1747975489923,3.72856077,2682.0,2681.9,16.088]
[1747975490197,3.72856077,2682.0,2681.9,24.088]
[1747975490983,3.72856077,2682.0,2681.9,40.739]
[1747975491871,3.72856077,2682.0,2681.9,32.739]
[1747975492077,3.72856077,2682.0,2681.9,40.739]
[1747975492479,3.72813892,2682.4,2682.0,8.0]
[1747975492678,3.72800477,2682.4,2682.0,8.0]
[1747975492872,1.4346,2682.8,2682.0,8.0]
[1747975493073,3.72793444,2682.5,2682.0,8.0]
[1747975493291,3.72768543,2682.7,2682.0,9.99140284]
[1747975493292,3.7283277,2682.2,2682.0,9.99140284]
[1747975493491,3.72820697,2682.3,2682.2,8.0]
[1747975494627,3.72806735,2682.4,2682.2,8.0]
[1747975494826,3.72814375,2682.3,2682.2,8.0]
[1747975496024,1.4346,2682.8,2682.2,10.4652]
[1747975496198,3.72782057,2682.6,2682.2,10.4652]
[1747975496391,3.72808672,2682.4,2682.2,8.0]
[1747975496794,3.7278707,2682.5,2682.2,8.0]
[1747975497190,3.7278707,2682.5,2682.2,0.13881178]
[1747975497410,3.7278707,2682.5,2682.1,16.652]
[1747975497935,3.72801514,2682.4,2682.1,16.652]
[1747975498230,3.72802413,2682.4,2682.1,16.652]
[1747975498434,3.72823606,2682.3,2681.9,16.088]
[1747975498622,3.72805139,2682.4,2682.0,27.824]
[1747975499195,1.3759,2682.5,2681.7,24.652]
[1747975499395,3.72814375,2682.3,2681.7,28.88949037]
[1747975499595,3.72829656,2682.2,2681.7,24.652]
[1747975499891,1.3759,2682.5,2681.7,24.652]
[1747975500097,3.72868728,2682.0,2681.8,8.0]
[1747975500535,3.7284475,2682.1,2681.8,8.0]
[1747975500834,3.72856107,2682.0,2681.8,8.0]
[1747975501035,3.72844415,2682.1,2681.8,8.0]
[1747975502032,3.72856394,2682.0,2681.8,8.0]
[1747975502535,5.10380229,2682.5,2681.8,8.0]
[1747975502734,0.51038023,2682.4,2681.8,8.0]
[1747975502941,3.72860703,2682.0,2681.8,8.0]
[1747975503439,3.72857805,2682.0,2681.8,8.0]
[1747975503635,3.72849903,2682.1,2681.8,8.0]
[1747975504537,3.72816519,2682.3,2681.8,8.0]
[1747975504843,1.3759,2682.5,2681.7,20.38089703]
[1747975504844,3.72829587,2682.2,2682.0,8.0]
[1747975505144,3.72842175,2682.1,2682.0,8.0]
[1747975505314,1.3759,2682.5,2682.0,8.0]
[1747975505638,3.72816441,2682.3,2682.0,8.0]
[1747975506013,3.72830677,2682.2,2682.0,8.0]
[1747975506415,3.72820189,2682.3,2682.0,8.0]
[1747975506817,3.72758787,2682.7,2682.1,1.3652]
[1747975507017,3.7278994,2682.5,2682.3,8.0]
[1747975507322,3.72800477,2682.4,2682.3,8.0]
[1747975507515,3.72791994,2682.5,2682.3,8.0]
[1747975508739,3.72772683,2682.6,2682.3,8.0]
[1747975508944,0.05,2682.9,2682.3,9.81952761]
[1747975509101,3.72747167,2682.8,2682.3,13.54766526]
[1747975509542,3.77735807,2682.9,2682.3,13.54766526]
[1747975509903,0.05,2682.9,2682.3,9.81952761]
[1747975510107,0.05,2682.9,2682.6,1.3133]
[1747975510307,0.05,2682.9,2682.8,8.0]
[1747975514559,0.05,2682.9,2682.8,11.72744893]
[1747975516352,0.05,2682.9,2682.8,8.0]
[1747975516527,0.05,2682.9,2682.8,1.08380897]
[1747975516728,0.05,2682.9,2682.8,35.749]
[1747975517477,0.05,2682.9,2682.8,16.578]
[1747975517617,3.77731,2682.9,2682.8,24.578]
[1747975518041,3.77731,2682.9,2682.8,16.578]
[1747975518241,0.05,2682.9,2682.8,16.578]
[1747975518441,0.05,2682.9,2682.8,26.2358]
[1747975520853,0.05,2682.9,2682.8,27.5852]
[1747975521553,0.05,2682.9,2682.8,31.31264893]
[1747975522420,1.3234,2683.7,2682.9,8.0]
[1747975522759,1.3234,2683.7,2683.2,11.72681268]
[1747975522941,1.3234,2683.7,2683.3,35.747]
[1747975523256,3.7260947,2683.8,2683.4,1.3494]
[1747975523257,3.72610737,2683.8,2683.4,1.3494]
[1747975523639,3.72661548,2683.4,2683.3,8.0]
[1747975524654,1.3234,2683.6,2683.3,8.0]
[1747975524861,3.72661548,2683.4,2683.3,8.0]
[1747975525438,3.72652913,2683.5,2683.3,8.0]
[1747975525641,3.72661548,2683.4,2683.3,8.0]
[1747975526042,1.3234,2683.6,2683.3,8.0]
[1747975526314,3.72650386,2683.5,2683.3,8.0]
[1747975526653,1.3234,2683.6,2683.3,8.0]
[1747975526960,3.72661548,2683.4,2683.3,8.0]
[1747975527257,1.3234,2683.6,2683.3,8.0]
[1747975527258,3.72650575,2683.5,2683.3,24.575]
[1747975527463,1.45823563,2683.9,2683.3,24.575]
[1747975527669,3.72629104,2683.7,2683.3,24.575]
[1747975528729,3.72610286,2683.8,2683.3,28.32502344]
[1747975529066,5.18421868,2683.9,2683.3,32.05169987]
[1747975529433,3.72606196,2683.8,2683.3,32.05169987]
[1747975529634,5.18416695,2683.9,2683.3,28.32502344]
[1747975529835,1.45823563,2683.9,2683.3,39.49302344]
[1747975530035,5.1842095,2683.9,2683.4,1.99140284]
[1747975530375,0.04503563,2683.9,2683.4,1.99140284]
[1747975530681,3.77097003,2683.9,2683.3,31.46970637]
[1747975530992,3.77097003,2683.9,2683.3,27.743]
[1747975530993,3.72607061,2683.8,2683.3,27.743]
[1747975531316,3.72628769,2683.7,2683.3,27.743]
[1747975531628,3.77099911,2683.9,2683.3,27.743]
[1747975531861,3.72611006,2683.8,2683.3,27.743]
[1747975533472,3.72611006,2683.8,2683.3,31.46972275]
[1747975533473,3.72606227,2683.8,2683.3,31.46972275]
[1747975533680,3.72606006,2683.8,2683.3,27.743]
[1747975534640,0.04503563,2683.9,2683.3,27.743]
[1747975534844,3.77102664,2683.9,2683.3,31.46967833]
[1747975535042,3.7262803,2683.7,2683.4,27.664]
[1747975535338,0.04503563,2683.9,2683.4,27.664]
[1747975535538,0.04503563,2683.9,2683.6,9.3914]
[1747975536378,0.04503563,2683.9,2683.6,13.11770358]
[1747975536560,0.04503563,2683.9,2683.6,13.11768482]
[1747975536751,0.04503563,2683.9,2683.7,27.664]
[1747975538080,0.04503563,2683.9,2683.8,8.0]
[1747975538440,0.04503563,2683.9,2683.8,19.167]
[1747975539237,0.04503563,2683.9,2683.6,1.3914]
[1747975539438,5.19809801,2683.9,2683.7,16.495]
[1747975539674,3.72633775,2683.6,2683.5,16.495]
[1747975540089,3.72625037,2683.7,2683.5,16.495]
[1747975540345,0.55,2684.4,2683.6,9.99929477]
[1747975540346,1.4384,2684.3,2683.6,9.99929477]
[1747975540588,1.4384,2684.3,2683.8,8.0]
[1747975540885,1.4384,2684.3,2683.6,5.13683444]
[1747975541182,1.4384,2684.3,2683.8,8.0]
[1747975541387,1.4384,2684.3,2683.8,11.72603087]
[1747975541681,1.4384,2684.3,2683.8,11.72598152]
[1747975541903,1.4384,2684.3,2684.0,8.0]
[1747975542183,1.4384,2684.5,2684.0,3.7256902]
[1747975542490,5.16350097,2684.5,2684.0,8.0]
[1747975542645,2.32723131,2684.5,2683.6,2.08913344]
[1747975542847,3.72535239,2684.4,2683.8,8.0]
[1747975543160,3.72522723,2684.4,2683.3,1.383]
[1747975543361,3.72503389,2684.6,2683.4,24.494]
[1747975543662,5.17134107,2684.2,2683.5,11.72647661]
[1747975543870,2.2458,2684.2,2683.5,8.0]
[1747975544082,5.97136188,2684.2,2683.6,16.494]
[1747975544414,0.8,2684.2,2683.7,11.72617666]
[1747975544552,5.17113801,2684.4,2683.7,11.72617666]
[1747975544553,5.17106702,2684.4,2683.7,11.72618342]
[1747975544750,1.4458,2684.4,2683.9,8.0]
[1747975544952,0.43246249,2684.7,2684.2,8.0]
[1747975545160,0.05,2684.9,2684.4,9.4287]
[1747975545384,0.05,2684.9,2684.4,1.4287]
[1747975545563,5.18224834,2684.7,2684.5,16.494]
[1747975545768,1.4574,2684.7,2684.5,16.494]
[1747975545966,1.4574,2684.7,2684.2,16.078]
[1747975546287,5.07776601,2684.3,2684.2,16.078]
[1747975547171,3.72588442,2684.0,2683.9,16.494]
[1747975547354,5.07779693,2684.3,2683.9,16.494]
[1747975547551,3.72578241,2684.0,2683.9,16.494]
[1747975547973,3.72606006,2683.8,2683.7,16.494]
[1747975549154,3.72647661,2683.5,2683.4,24.078]
[1747975549369,1.3971,2683.4,2683.2,16.494]
[1747975549567,1.3971,2684.0,2683.2,16.494]
[1747975549767,3.72672866,2683.4,2683.2,16.494]
[1747975550814,3.72652372,2683.5,2683.2,16.494]
[1747975551105,3.72660825,2683.5,2683.3,8.0]
[1747975551610,1.3971,2684.0,2683.3,8.0]
[1747975551816,3.72629841,2683.7,2683.3,8.0]
[1747975552115,1.4396,2683.7,2683.3,16.495]
[1747975552411,3.72647661,2683.5,2683.3,16.495]
[1747975552713,3.72644522,2683.6,2683.3,16.495]
[1747975553053,3.7264859,2683.5,2683.3,16.495]
[1747975553292,3.72627895,2683.7,2683.4,8.0]
[1747975553679,5.16554845,2683.9,2683.4,8.0]
[1747975553680,3.72610739,2683.8,2683.4,8.0]
[1747975553881,3.72620142,2683.7,2683.4,9.4341]
[1747975554405,3.72647661,2683.5,2683.4,24.496]
[1747975554565,3.72647661,2683.5,2683.4,16.496]
[1747975555264,1.3182,2683.4,2682.7,8.0]
[1747975555611,3.72758787,2682.7,2682.6,16.078]
[1747975555801,3.72758787,2682.7,2682.6,24.078]
[1747975559913,3.72719346,2683.0,2682.7,1.3709]
[1747975560080,3.72707428,2683.1,2682.7,1.3709]
[1747975560275,3.72731,2682.9,2682.8,16.499]
[1747975560611,3.72731,2682.9,2682.8,8.0]
[1747975560762,3.72731,2682.9,2682.8,24.499]
[1747975561197,5.03451,2682.9,2682.8,24.499]
[1747975561719,5.03451,2682.9,2682.8,8.0]
[1747975561923,5.9106785,2682.9,2682.8,8.0]
[1747975562079,5.03451,2682.9,2682.8,8.0]
[1747975564082,3.72745236,2682.8,2682.7,16.499]
[1747975564287,1.3869,2683.5,2682.7,16.499]
[1747975564816,3.72660418,2683.5,2682.8,3.76471948]
[1747975564980,3.72662507,2683.4,2682.9,2.02637195]
[1747975565175,3.72662507,2683.4,2683.0,11.169]
[1747975565523,3.72651132,2683.5,2683.0,11.169]
[1747975565716,1.3869,2683.7,2683.0,11.169]
[1747975566013,1.3204,2684.1,2682.9,2.02637195]
[1747975566180,3.72669609,2683.4,2683.0,27.599]
[1747975566577,3.72647755,2683.5,2683.0,27.599]
[1747975566777,3.72679891,2683.3,2683.0,27.599]
[1747975566989,3.72655298,2683.5,2683.0,28.9096]
[1747975567395,5.07204232,2683.6,2683.0,28.9096]
[1747975567590,1.3457,2683.8,2683.0,28.9096]
[1747975567813,5.07179866,2683.8,2683.0,28.9096]
[1747975567978,3.72609759,2683.8,2683.3,1.3106]
[1747975568183,0.05,2683.9,2683.3,0.50373973]
[1747975568382,0.05,2683.9,2683.6,5.03693027]
[1747975568595,0.05,2683.9,2683.7,27.598]
[1747975569049,0.05,2683.9,2683.8,0.03725617]
[1747975569253,0.05,2683.9,2683.8,6.62064568]
[1747975569424,0.05,2683.9,2683.8,10.89458562]
[1747975569846,0.05,2683.9,2683.8,22.06258562]
[1747975570173,0.05,2683.9,2683.1,1.3275]
[1747975570337,3.72634869,2683.6,2683.1,9.3275]
[1747975570548,0.05,2683.9,2683.3,8.0]
[1747975570853,0.55716702,2683.9,2683.3,8.0]
[1747975571023,3.72647394,2683.6,2683.3,8.0]
[1747975571454,3.72609372,2683.8,2683.3,8.0]
[1747975571648,3.77600962,2683.9,2683.3,11.72664264]
[1747975571804,0.05,2683.9,2683.6,8.0]
[1747975572004,0.05,2683.9,2683.7,16.429]
[1747975572606,1.4193,2683.8,2683.2,1.3684]
[1747975572805,5.14538418,2683.8,2683.3,16.429]
[1747975573105,3.72643094,2683.6,2683.3,16.429]
[1747975573508,3.72648167,2683.5,2683.3,16.429]
[1747975573706,3.72648167,2683.5,2683.4,8.0]
[1747975574008,3.72648167,2683.5,2683.4,24.429]
[1747975574845,3.72725323,2683.0,2682.7,1.3979]
[1747975575035,5.06775436,2683.3,2683.2,16.429]
[1747975575341,5.06775436,2683.3,2683.2,24.429]
[1747975575540,5.06775436,2683.3,2683.2,8.0]
[1747975575941,3.72649213,2683.5,2683.3,8.0]
[1747975576328,3.72661548,2683.4,2683.3,8.0]
[1747975576745,3.72707784,2683.1,2682.9,19.167]
[1747975576928,3.72707784,2683.1,2683.0,24.429]
[1747975577124,3.72707784,2683.1,2683.0,8.0]
[1747975577457,3.72763308,2682.7,2682.3,16.429]
[1747975577671,3.72755753,2682.8,2682.4,8.0]
[1747975578019,3.72755165,2682.8,2682.5,16.429]
[1747975578232,3.72755165,2682.8,2682.7,8.0]
[1747975578444,1.3522,2683.0,2681.9,1.3915]
[1747975578645,3.72781629,2682.6,2682.0,27.596]
[1747975578913,3.72786671,2682.5,2682.1,8.0]
[1747975579132,3.72786671,2682.5,2682.3,8.0]
[1747975579358,1.3522,2683.0,2682.3,8.0]
[1747975579657,3.72781246,2682.6,2682.3,8.0]
[1747975580354,0.50792878,2682.9,2681.9,9.3915]
[1747975580355,4.23528027,2682.9,2681.9,9.3915]
[1747975580532,3.72786579,2682.5,2682.4,8.0]
[1747975580731,3.72786579,2682.5,2682.4,24.429]
[1747975581126,3.72772683,2682.6,2682.5,8.0]
[1747975582262,3.72778549,2682.6,2682.4,16.431]
[1747975582458,3.72778549,2682.6,2682.5,8.0]
[1747975582823,3.72778549,2682.6,2681.4,1.3916]
[1747975582824,0.57727529,2682.6,2681.4,1.3916]
[1747975583022,3.72939509,2681.4,2681.3,1.16902746]
[1747975583224,3.72939509,2681.4,2681.3,9.16902746]
[1747975583470,3.72913679,2681.6,2681.3,1.16902746]
[1747975583758,3.72937658,2681.5,2681.3,1.16902746]
[1747975583961,1.3567,2681.8,2681.3,17.60202746]
[1747975584177,5.0856505,2681.8,2681.3,17.60202746]
[1747975584372,3.72898729,2681.7,2681.3,16.433]
[1747975584527,3.72911694,2681.6,2681.3,16.433]
[1747975584733,1.34,2682.4,2681.5,1.3747]
[1747975585069,1.34,2682.4,2681.6,8.0]
[1747975585240,3.72857558,2682.0,2681.8,8.0]
[1747975585450,3.72828107,2682.3,2681.8,8.0]
[1747975585632,3.72838414,2682.2,2681.8,8.0]
[1747975585832,5.06802085,2682.4,2681.8,8.0]
[1747975586048,3.72842292,2682.1,2681.8,8.0]
[1747975586465,5.06805372,2682.4,2681.4,1.3747]
[1747975586665,3.72879093,2681.9,2681.6,8.0]
[1747975587075,0.50680537,2682.3,2681.5,8.0]
[1747975587273,1.34,2682.4,2681.7,16.434]
[1747975587435,3.7285829,2682.0,2681.7,16.434]
[1747975587800,3.7286275,2682.0,2681.5,8.0]
[1747975587945,3.7286275,2682.0,2681.9,8.0]
[1747975588859,3.72895571,2681.8,2681.4,1.3747]
[1747975589059,3.72895571,2681.8,2681.6,8.0]
[1747975589262,3.72895571,2681.8,2681.4,1.3747]
[1747975589469,3.72875146,2681.9,2681.6,8.0]
[1747975589642,3.72885934,2681.8,2681.6,8.0]
[1747975589971,3.72897788,2681.7,2681.6,8.0]
[1747975590177,3.72870091,2681.9,2681.6,8.0]
[1747975590178,3.72889874,2681.8,2681.6,8.0]
[1747975590477,3.72897788,2681.7,2681.6,8.0]
[1747975590975,3.72925601,2681.5,2681.1,0.05]
[1747975591142,3.72925601,2681.5,2681.3,8.0]
[1747975591143,3.72937587,2681.5,2681.3,8.0]
[1747975591472,3.72931404,2681.5,2681.4,8.0]
[1747975591684,5.12056996,2682.0,2681.4,8.0]
[1747975591685,3.72879445,2681.9,2681.4,8.0]
[1747975591987,3.7286998,2681.9,2681.4,10.4436]
[1747975592347,3.7286998,2681.9,2681.4,8.0]
[1747975592784,3.72883883,2681.8,2681.4,8.0]
[1747975592950,1.3919,2682.0,2681.4,8.0]